bitfinex-derivatives/quotes_ETHF0:USTF0_20251117
["timestamp","ask_amount","ask_price","bid_price","bid_amount"]
[1763369102046,4.48269856,3189.6,3189.5,0.1478]
[1763369103147,4.48269856,3189.6,3189.5,0.3963]
[1763369103338,3.97438856,3189.6,3189.5,0.3963]
[1763369103842,3.97438856,3189.6,3189.4,1.3309]
[1763369103843,4.48270856,3189.6,3189.4,0.51528668]
[1763369104147,0.50836,3189.3,3189.2,1.1486]
[1763369104646,1.27494856,3189.3,3189.2,1.1486]
[1763369104846,3.90178856,3189.3,3188.4,3.2078]
[1763369105144,3.2078,3188.6,3188.2,0.2485]
[1763369105346,0.50851,3188.4,3188.3,0.2485]
[1763369105543,1.27509856,3188.4,3188.3,0.2485]
[1763369106048,1.27509856,3188.4,3188.3,0.25095548]
[1763369106248,1.27509856,3188.4,3188.3,0.00245548]
[1763369106647,1.27509856,3188.4,3188.3,0.25095548]
[1763369106950,1.26826455,3188.4,3188.3,0.25095548]
[1763369107245,1.26826455,3188.4,3188.3,0.00245548]
[1763369107544,0.50851,3188.4,3188.3,0.25095548]
[1763369108248,3.2078,3188.6,3188.5,0.3935]
[1763369108551,3.2078,3189.0,3188.9,0.2485]
[1763369108747,3.2078,3189.0,3188.5,0.145]
[1763369109049,0.50843,3188.9,3188.5,0.145]
[1763369109246,3.2078,3189.0,3188.5,0.145]
[1763369109447,0.50846,3188.7,3188.5,0.145]
[1763369109852,0.50843,3188.9,3188.5,0.145]
[1763369110250,0.50845,3188.8,3188.5,0.145]
[1763369110453,0.50847,3188.7,3188.5,0.145]
[1763369112551,3.2078,3188.6,3188.5,0.145]
[1763369114551,3.2078,3188.6,3188.5,0.1354]
[1763369117857,0.50846,3188.7,3188.5,0.1354]
[1763369118059,3.2078,3188.6,3188.5,0.1354]
[1763369118960,0.50849,3188.5,3188.3,0.00245548]
[1763369120157,0.5085,3188.4,3188.3,0.00245548]
[1763369127466,3.2078,3188.9,3188.5,0.1477]
[1763369127662,0.50847,3188.6,3188.5,0.1477]
[1763369127968,0.50844,3188.8,3188.5,0.1477]
[1763369128165,3.71623,3188.9,3188.6,0.2398]
[1763369128359,3.2078,3188.9,3188.6,0.2398]
[1763369128560,3.2078,3188.9,3188.8,0.2398]
[1763369129361,0.00469822,3189.2,3189.1,0.2398]
[1763369149484,0.00469822,3189.2,3189.0,0.1477]
[1763369149485,3.2078,3189.5,3189.4,0.2252]
[1763369149984,3.2078,3189.9,3189.8,0.2252]
[1763369151082,3.71607,3189.9,3189.8,0.2252]
[1763369151285,3.2078,3189.9,3189.7,0.2252]
[1763369151482,3.2078,3189.9,3189.8,0.2252]
[1763369151674,3.71607,3189.9,3189.8,0.2252]
[1763369152980,3.2078,3189.9,3189.8,0.2252]
[1763369154284,3.97038791,3189.9,3189.8,0.2252]
[1763369154582,3.2078,3189.9,3189.8,0.2252]
[1763369155979,0.00469822,3190.2,3190.1,0.2252]
[1763369156178,0.76745893,3190.2,3190.1,0.2252]
[1763369160082,0.00469822,3190.2,3190.1,0.2252]
[1763369160289,0.76745893,3190.2,3190.1,0.2252]
[1763369160485,1.27567893,3190.2,3190.1,0.2252]
[1763369166291,0.50823,3190.1,3190.0,0.1463]
[1763369166487,0.50823,3190.1,3190.0,0.3715]
[1763369166884,0.00469822,3190.2,3190.1,0.2252]
[1763369167684,0.51291822,3190.2,3190.0,0.1463]
[1763369167885,0.50823,3190.1,3190.0,0.3715]
[1763369171684,3.71603,3190.1,3190.0,0.3715]
[1763369172295,4.47920383,3190.1,3190.0,0.3715]
[1763369175195,4.46960383,3190.1,3190.0,0.3715]
[1763369177204,4.46960383,3190.1,3190.0,0.87975]
[1763369180000,4.46960383,3190.1,3190.0,0.3715]
[1763369181908,4.46960383,3190.1,3190.0,0.1463]
[1763369182408,4.46960383,3190.1,3190.0,0.3901]
[1763369182708,4.46960383,3190.1,3190.0,0.1463]
[1763369183206,4.46960383,3190.1,3190.0,0.3901]
[1763369185207,4.46960383,3190.1,3190.0,0.1463]
[1763369185409,4.46960383,3190.1,3190.0,0.3901]
[1763369186011,4.47120794,3190.1,3190.0,0.3901]
[1763369186315,3.97257794,3190.1,3190.0,0.3901]
[1763369187308,0.06179222,3190.6,3190.5,0.3856]
[1763369188513,2.89785399,3191.0,3190.8,0.2438]
[1763369188920,2.89785399,3191.0,3190.5,0.39358621]
[1763369189210,0.50814,3190.7,3190.5,0.39358621]
[1763369189514,0.51216215,3190.7,3190.5,0.39686881]
[1763369189902,0.00402215,3190.7,3190.6,0.2438]
[1763369190613,0.50815,3190.6,3190.5,0.3888826]
[1763369190814,0.00402215,3190.7,3190.6,0.2438]
[1763369201627,0.00469822,3190.9,3190.8,0.2438]
[1763369202625,0.00848134,3190.9,3190.8,0.2438]
[1763369203127,0.00848134,3190.9,3190.8,1.6181]
[1763369211539,0.51659134,3190.9,3190.8,1.6181]
[1763369211741,0.51659134,3190.9,3190.8,1.3743]
[1763369212040,1.26986608,3190.9,3190.8,1.3743]
[1763369213735,4.47766608,3190.9,3190.8,1.3743]
[1763369215444,4.47766608,3190.9,3190.8,1.6009]
[1763369215939,4.47766608,3190.9,3190.8,1.3743]
[1763369221250,4.47766608,3190.9,3190.8,1.6009]
[1763369223054,4.47766608,3190.9,3190.8,1.3743]
[1763369231748,0.50812,3190.8,3190.7,0.1512]
[1763369231955,0.50815,3190.6,3190.5,0.25454909]
[1763369232147,1.26142474,3190.6,3190.5,0.39694909]
[1763369232859,1.26142474,3190.6,3190.5,0.1456826]
[1763369234450,1.26142474,3190.6,3190.5,0.0032826]
[1763369235358,1.26142474,3190.6,3190.5,0.25087433]
[1763369236355,4.46922474,3190.6,3190.5,0.25087433]
[1763369236559,4.46922474,3190.6,3190.5,0.1456826]
[1763369237261,4.46922474,3190.6,3190.5,0.39373498]
[1763369238456,4.46922474,3190.6,3190.5,0.1456826]
[1763369238656,4.46922474,3190.6,3190.5,0.3722826]
[1763369240361,4.46922474,3190.6,3190.5,0.62252312]
[1763369240660,4.46922474,3190.6,3190.5,0.3722826]
[1763369242166,4.46922474,3190.6,3190.5,0.61917685]
[1763369242655,4.46922474,3190.6,3190.5,0.3722826]
[1763369243263,1.26142474,3190.6,3190.5,0.3722826]
[1763369243561,4.46922474,3190.6,3190.5,0.3722826]
[1763369244066,4.46922474,3190.6,3190.5,0.62189657]
[1763369244561,1.12945961,3190.9,3190.8,0.2385]
[1763369244754,0.00848134,3190.9,3190.8,0.2385]
[1763369245662,4.83678827,3191.5,3191.4,0.2385]
[1763369245865,3.71581,3191.5,3191.4,0.2385]
[1763369246658,3.21013324,3191.5,3191.4,0.2385]
[1763369247463,3.71814324,3191.5,3191.4,0.2385]
[1763369248265,3.21013324,3191.5,3191.4,0.2385]
[1763369251662,2.83377104,3191.5,3191.4,0.2385]
[1763369252169,3.34178104,3191.5,3191.4,0.2385]
[1763369254772,2.83377104,3191.5,3191.4,0.2385]
[1763369259370,3.34178104,3191.5,3191.4,0.2385]
[1763369259777,2.83377104,3191.5,3191.4,0.2385]
[1763369260980,3.34178104,3191.5,3191.4,0.2385]
[1763369262078,2.83377104,3191.5,3191.4,0.2385]
[1763369262473,3.34178104,3191.5,3191.4,0.2385]
[1763369265680,2.83377104,3191.5,3191.4,0.2385]
[1763369267170,3.34178104,3191.5,3191.4,0.2385]
[1763369268572,2.83377104,3191.5,3191.4,0.2385]
[1763369272982,3.34178104,3191.5,3191.4,0.2385]
[1763369273175,2.83377104,3191.5,3191.4,0.2385]
[1763369273883,0.50804,3191.4,3191.1,4.31339822]
[1763369274382,2.83377104,3191.5,3191.1,5.99922148]
[1763369274383,3.34178104,3191.5,3191.1,5.99922148]
[1763369274580,3.34180104,3191.5,3191.3,0.2434]
[1763369275379,2.83377104,3191.5,3191.4,0.2434]
[1763369275582,3.56547025,3191.5,3191.4,0.2434]
[1763369277081,0.73403245,3191.5,3191.4,0.2434]
[1763369277473,0.00233324,3191.5,3191.4,0.2434]
[1763369277676,0.73403245,3191.5,3191.4,0.2434]
[1763369278781,0.00233324,3191.5,3191.4,0.2434]
[1763369279687,0.73403245,3191.5,3191.4,0.2434]
[1763369280079,0.00233324,3191.5,3191.4,0.2434]
[1763369280384,0.00233324,3191.5,3190.5,2.64176585]
[1763369280385,3.1328,3191.4,3190.5,2.64176585]
[1763369280676,0.50822,3190.2,3190.1,0.29532]
[1763369280871,5.06047748,3190.2,3190.1,0.7930645]
[1763369281068,3.93949921,3190.2,3190.1,0.29532]
[1763369281676,3.93949921,3190.2,3190.1,0.29866806]
[1763369284280,3.2078,3190.2,3190.1,0.29866806]
[1763369284881,3.97336104,3190.2,3190.1,0.29866806]
[1763369286385,3.2078,3190.2,3190.1,0.29866806]
[1763369288183,3.97198491,3190.2,3190.1,0.29866806]
[1763369290281,3.97198491,3190.2,3189.9,1.3216]
[1763369290282,0.50823,3190.1,3189.9,1.3140626]
[1763369290488,0.76418491,3190.0,3189.9,1.3140626]
[1763369291288,0.76418491,3190.0,3189.9,1.31692799]
[1763369292390,6.76418491,3190.0,3189.9,1.31692799]
[1763369292587,6.76418491,3190.0,3189.5,1.1457]
[1763369292788,3.71611,3189.6,3189.5,1.1457]
[1763369293289,0.50839,3189.2,3189.0,0.1477]
[1763369293488,3.2078,3189.1,3189.0,0.1477]
[1763369293687,3.2078,3189.1,3189.0,0.15043937]
[1763369295290,3.2078,3189.1,3189.0,0.00273937]
[1763369295486,3.2078,3189.1,3189.0,0.15043937]
[1763369296085,3.2078,3189.1,3189.0,0.00273937]
[1763369299090,3.2078,3189.1,3189.0,0.14043937]
[1763369299492,3.2078,3189.1,3189.0,0.37513937]
[1763369299693,3.2078,3189.1,3189.0,0.14043937]
[1763369299888,3.2078,3189.1,3189.0,0.00273937]
[1763369302786,3.2078,3189.1,3189.0,0.14043937]
[1763369304195,3.96926675,3189.1,3189.0,0.14043937]
[1763369305599,3.96926675,3189.1,3189.0,0.00273937]
[1763369306188,3.96926675,3189.1,3188.7,1.3279]
[1763369306501,0.76146675,3189.0,3188.7,1.3279]
[1763369307001,1.67983069,3188.8,3187.2,3.2078]
[1763369307202,3.2078,3187.6,3187.5,0.89367587]
[1763369307499,3.2078,3188.4,3188.3,0.2347]
[1763369307802,3.97017425,3188.4,3188.3,0.2347]
[1763369308203,3.2078,3188.4,3188.3,0.2347]
[1763369309298,0.50854,3188.2,3188.0,0.1377]
[1763369309500,0.50854,3188.2,3188.1,0.2347]
[1763369310304,3.2078,3188.4,3188.1,0.2347]
[1763369310506,0.76342906,3188.3,3188.1,0.2347]
[1763369310801,3.2078,3188.4,3188.3,0.2347]
[1763369310998,3.97126663,3188.4,3188.3,0.2347]
[1763369312506,3.97126663,3188.4,3188.0,0.1377]
[1763369312709,3.2078,3188.4,3188.3,0.2347]
[1763369312907,3.97039954,3188.4,3188.3,0.2347]
[1763369313502,3.97039954,3188.4,3188.3,0.2251]
[1763369317010,0.50855,3188.1,3188.0,0.1377]
[1763369317213,0.50855,3188.1,3188.0,0.3724]
[1763369317606,1.27114954,3188.1,3188.0,0.3724]
[1763369317910,1.27114954,3188.1,3188.0,0.1377]
[1763369318813,1.27114954,3188.1,3187.9,0.5366]
[1763369318814,0.50857,3188.0,3187.9,0.5366]
[1763369319007,5.59030572,3188.0,3187.9,0.5366]
[1763369319407,4.47896954,3188.0,3187.9,0.5366]
[1763369319913,5.59644396,3188.0,3187.9,1.27988]
[1763369320320,5.59644396,3188.0,3187.9,0.5366]
[1763369321217,4.47896954,3188.0,3187.9,0.5366]
[1763369321414,0.76259954,3188.0,3187.9,0.7713]
[1763369321616,0.64457809,3188.3,3188.1,0.2347]
[1763369321820,3.2078,3188.8,3188.5,0.1377]
[1763369322411,3.71624,3188.8,3188.5,0.1377]
[1763369323419,3.71624,3188.8,3188.7,0.2347]
[1763369324023,0.50844,3188.8,3188.7,0.2347]
[1763369325424,0.50847,3188.6,3188.5,0.3724]
[1763369325614,0.50847,3188.6,3188.5,0.1377]
[1763369326119,0.50854,3188.2,3188.0,0.1377]
[1763369326315,3.71634,3188.2,3188.0,0.1377]
[1763369328620,0.50857,3188.0,3187.9,0.5366]
[1763369330218,3.71635,3188.2,3188.1,0.2371]
[1763369331325,3.71635,3188.2,3188.0,0.1769]
[1763369332522,0.50855,3188.2,3188.1,0.2371]
[1763369332722,0.50852,3188.4,3188.1,0.2371]
[1763369333026,0.50852,3188.4,3188.3,0.2371]
[1763369333621,1.2685667,3188.4,3188.3,0.2371]
[1763369334328,0.7600467,3188.4,3188.3,0.2371]
[1763369334529,1.26860105,3188.5,3188.4,0.2371]
[1763369334726,0.76011105,3188.5,3188.4,0.2371]
[1763369336626,1.26860105,3188.5,3188.4,0.2371]
[1763369338623,0.50851,3188.4,3188.0,0.1769]
[1763369338823,1.26863105,3188.3,3188.2,0.2371]
[1763369339024,0.76011105,3188.3,3188.2,0.2371]
[1763369339329,0.5085,3188.5,3188.4,0.2371]
[1763369339526,1.26891275,3188.5,3188.4,0.2371]
[1763369340035,0.76041275,3188.5,3188.0,0.1769]
[1763369340928,0.50854,3188.2,3188.1,0.2371]
[1763369341131,1.26895275,3188.2,3188.1,0.2371]
[1763369341436,1.26895275,3188.2,3188.0,0.1769]
[1763369341631,3.33951919,3188.6,3188.5,0.1769]
[1763369341827,3.59141771,3188.6,3188.5,0.1769]
[1763369342028,4.09988771,3188.6,3188.5,0.1769]
[1763369342427,3.59141771,3188.6,3188.5,0.414]
[1763369342629,4.09988771,3188.6,3188.5,0.414]
[1763369343936,4.09988771,3188.6,3188.5,0.1769]
[1763369344740,3.59141771,3188.6,3188.5,0.414]
[1763369345033,3.2078,3189.1,3189.0,0.414]
[1763369345627,0.00395833,3189.2,3189.1,0.2371]
[1763369348638,0.00469822,3189.4,3189.3,0.2371]
[1763369349035,3.2078,3189.9,3189.8,0.2371]
[1763369349733,3.2078,3189.9,3189.8,0.24063218]
[1763369349938,3.21176655,3189.9,3189.8,0.24063218]
[1763369350338,0.00396655,3189.9,3189.8,0.24063218]
[1763369351728,0.51292581,3190.2,3190.1,0.2371]
[1763369352735,0.51543879,3190.2,3190.1,0.2371]
[1763369353137,0.51543879,3190.2,3190.0,0.1769]
[1763369354440,0.51543879,3190.2,3190.1,0.2371]
[1763369354837,0.00721879,3190.2,3190.1,0.2371]
[1763369358146,0.50823,3190.1,3190.0,0.46]
[1763369358538,0.00721879,3190.2,3190.1,0.2831]
[1763369359451,0.50827,3189.9,3189.8,0.00353218]
[1763369359641,3.71607,3189.9,3189.8,0.00353218]
[1763369360241,9.95072726,3189.9,3188.8,3.21250581]
[1763369360446,0.50839,3189.1,3188.8,3.21250581]
[1763369361044,0.50839,3189.1,3188.8,0.00470581]
[1763369361752,0.50839,3189.1,3189.0,0.17997085]
[1763369362255,1.25148047,3189.1,3189.0,0.17897085]
[1763369362849,0.50839,3189.1,3189.0,0.45777085]
[1763369364051,0.50839,3189.1,3189.0,0.17897085]
[1763369364446,1.25199328,3189.1,3189.0,0.17897085]
[1763369364955,1.25199328,3189.1,3189.0,0.00307085]
[1763369365150,0.50842,3188.9,3188.8,0.87310581]
[1763369365351,3.71622,3188.9,3188.8,0.87310581]
[1763369365547,4.45982328,3188.9,3188.8,0.87310581]
[1763369365747,4.45982328,3188.9,3188.8,5.81e-06]
[1763369366146,4.45982328,3188.9,3188.8,0.00251795]
[1763369367454,4.45982328,3188.9,3188.5,0.18160581]
[1763369367455,0.50847,3188.6,3188.5,0.18160581]
[1763369367651,1.25195425,3188.6,3188.5,0.00470581]
[1763369368158,0.50855,3188.1,3188.0,0.1759]
[1763369368453,0.50855,3188.1,3188.0,0.17811516]
[1763369369053,0.50855,3188.1,3188.0,0.45691516]
[1763369371453,0.00470581,3188.4,3188.3,0.2788]
[1763369372059,0.50854,3188.2,3188.1,0.2788]
[1763369373560,0.50854,3188.2,3188.0,0.17811516]
[1763369373864,0.50854,3188.2,3188.1,0.2788]
[1763369381764,0.00470581,3188.4,3188.3,0.2788]
[1763369382265,5.81e-06,3188.4,3188.3,0.2788]
[1763369382468,5.81e-06,3188.4,3188.3,6.2788]
[1763369382864,5.81e-06,3188.4,3188.3,0.2788]
[1763369383061,5.81e-06,3188.4,3188.3,6.2788]
[1763369388967,3.71615,3189.4,3189.3,0.2788]
[1763369389171,0.50839,3189.2,3189.0,0.1588]
[1763369389374,0.50839,3189.2,3189.1,0.2798]
[1763369389778,1.25247471,3189.2,3189.1,0.2798]
[1763369393173,0.74408471,3189.2,3189.1,0.2798]
[1763369393374,1.25195166,3189.3,3189.2,0.2798]
[1763369393876,0.74358166,3189.3,3189.2,0.2798]
[1763369394071,0.00470581,3189.5,3189.4,0.2798]
[1763369394470,3.2078,3189.8,3189.7,0.2798]
[1763369397068,0.51293581,3190.1,3190.0,0.1588]
[1763369397377,0.51293581,3190.1,3190.0,0.4386]
[1763369398764,0.50828,3189.8,3189.7,0.00470581]
[1763369399072,4.45852351,3189.8,3189.7,0.00470581]
[1763369399265,4.45852351,3189.8,3189.0,0.1588]
[1763369399266,3.95024351,3189.8,3189.0,0.4386]
[1763369399467,0.50839,3189.2,3189.1,0.2798]
[1763369400474,0.50839,3189.1,3189.0,0.1588]
[1763369400871,0.50839,3189.1,3189.0,0.4386]
[1763369401072,0.50837,3189.3,3189.2,0.2798]
[1763369401277,3.2078,3189.8,3189.7,0.2798]
[1763369401477,3.95007555,3189.8,3189.7,0.2798]
[1763369402175,3.71608,3189.8,3189.7,0.2798]
[1763369402380,0.50828,3189.8,3189.7,0.2798]
[1763369403380,0.51293581,3190.1,3190.0,0.1588]
[1763369403577,1.2552527,3190.1,3190.0,0.4386]
[1763369404181,0.51293581,3190.1,3190.0,0.4386]
[1763369404776,0.00470581,3190.1,3190.0,0.4386]
[1763369405486,0.00470581,3190.1,3190.0,3.6464]
[1763369406984,1.879e-05,3190.2,3190.1,0.2798]
[1763369407986,13.87521435,3190.5,3190.4,0.2798]
[1763369408484,13.36704435,3190.5,3190.4,0.2798]
[1763369409084,13.37077513,3190.5,3190.4,0.28364978]
[1763369410977,13.37077513,3190.5,3190.4,0.56090707]
[1763369411290,0.00843659,3190.5,3190.4,3.49144978]
[1763369412378,3.2078,3191.3,3190.4,3.49144978]
[1763369412379,0.74342161,3191.2,3190.4,3.76862199]
[1763369412583,3.2078,3191.9,3191.5,0.4386]
[1763369412888,1.25125812,3191.8,3191.7,0.2798]
[1763369413486,1.25485776,3191.8,3191.7,0.2798]
[1763369413887,0.51155964,3191.8,3191.7,0.2798]
[1763369414087,0.00359964,3191.8,3191.7,0.2798]
[1763369420191,0.51155964,3191.8,3191.7,0.2798]
[1763369421299,0.50799,3191.6,3191.5,0.1588]
[1763369421694,1.24969084,3191.6,3191.5,0.1588]
[1763369429305,1.24969084,3191.6,3191.5,0.4248]
[1763369429609,0.74170084,3191.6,3191.5,0.4248]
[1763369429912,1.25624339,3191.8,3191.7,0.266]
[1763369430103,1.25624454,3191.8,3191.7,0.266]
[1763369430512,0.74828454,3191.8,3191.7,0.266]
[1763369430705,0.51155964,3191.8,3191.7,0.266]
[1763369431313,0.00359964,3191.8,3191.7,0.266]
[1763369431818,0.51261581,3192.1,3192.0,0.4279]
[1763369432216,1.257917,3192.1,3192.0,0.4279]
[1763369432917,1.26130765,3192.1,3192.0,0.4279]
[1763369434716,1.26130765,3192.1,3192.0,0.1619]
[1763369437317,0.75339765,3192.1,3192.0,0.4279]
[1763369437517,1.26130765,3192.1,3192.0,0.4279]
[1763369450235,0.75339765,3192.1,3192.0,0.4279]
[1763369450432,0.50784,3192.6,3192.5,0.3957]
[1763369451329,0.51129552,3192.6,3192.5,0.3957]
[1763369452724,0.51129552,3192.6,3192.5,0.146]
[1763369452930,0.51129552,3192.6,3192.5,0.3957]
[1763369454433,3.71909552,3192.6,3192.5,0.146]
[1763369454738,3.71909552,3192.6,3192.0,0.1619]
[1763369454739,0.50792,3192.1,3192.0,0.4116]
[1763369455731,0.50799,3191.6,3191.5,0.1588]
[1763369458142,0.50799,3191.6,3191.4,0.00470581]
[1763369459138,0.50799,3191.6,3191.5,0.146]
[1763369461826,0.50799,3191.6,3191.5,0.3957]
[1763369462038,0.50799,3191.6,3191.5,0.146]
[1763369462537,1.25048798,3191.6,3191.5,0.146]
[1763369466336,0.50801,3191.5,3191.4,0.00470581]
[1763369466538,1.25050798,3191.5,3191.4,0.00470581]
[1763369470042,4.45830798,3191.5,3191.4,0.00470581]
[1763369473448,4.45830798,3191.5,3191.4,0.25440581]
[1763369473743,4.45830798,3191.5,3191.4,0.00470581]
[1763369475552,4.45830798,3191.5,3191.4,0.25440581]
[1763369475948,4.45830798,3191.5,3191.4,0.00470581]
[1763369483249,5.57466927,3191.5,3191.4,0.00470581]
[1763369483755,4.45830798,3191.5,3191.4,0.00470581]
[1763369484353,6.14774987,3191.5,3191.4,0.00470581]
[1763369485250,4.46791918,3191.5,3191.4,0.00470581]
[1763369491758,4.46791918,3191.5,3191.4,0.25340581]
[1763369492359,1.26011918,3191.5,3191.4,0.25340581]
[1763369492560,0.75210918,3191.5,3191.4,0.25340581]
[1763369492761,1.26011918,3191.5,3191.4,0.25340581]
[1763369493356,0.75210918,3191.5,3191.4,0.25340581]
[1763369493566,0.50799,3191.6,3191.5,0.3952]
[1763369494157,1.26087236,3191.6,3191.5,0.3952]
[1763369504572,1.26087236,3191.6,3191.5,0.1465]
[1763369507779,2.38038677,3191.6,3191.5,0.1465]
[1763369512066,0.50801,3191.5,3191.4,0.00470581]
[1763369512272,4.46869236,3191.5,3191.4,0.00470581]
[1763369516481,5.58820677,3191.5,3191.4,0.00470581]
[1763369522380,5.58820677,3191.5,3191.4,0.24990581]
[1763369522581,4.46869236,3191.5,3191.4,0.24990581]
[1763369523590,5.58820677,3191.5,3191.4,0.00470581]
[1763369524988,5.58820677,3191.5,3191.4,0.24990581]
[1763369529492,4.46869236,3191.5,3191.4,0.24990581]
[1763369529996,5.58820677,3191.5,3191.4,0.00470581]
[1763369531182,5.58820677,3191.5,3191.4,0.24990581]
[1763369532390,0.75288236,3191.5,3191.4,0.24990581]
[1763369532790,1.62747441,3191.8,3191.7,0.2452]
[1763369533094,2.38035897,3191.8,3191.7,0.2452]
[1763369533298,0.50799,3191.7,3191.5,0.1422]
[1763369533496,0.75288456,3191.6,3191.5,0.3874]
[1763369533696,0.50799,3191.7,3191.6,0.2452]
[1763369533899,1.26097748,3191.7,3191.6,0.2452]
[1763369536385,0.50799,3191.6,3191.5,0.1422]
[1763369536591,1.26097748,3191.6,3191.5,0.1422]
[1763369537692,0.75298748,3191.6,3191.5,0.3874]
[1763369537901,0.50799,3191.6,3191.5,0.3701]
[1763369538200,1.26097748,3191.6,3191.5,0.3701]
[1763369539098,0.75298748,3191.6,3191.5,0.3701]
[1763369539298,0.50798,3191.8,3191.7,0.2298]
[1763369539501,1.26044418,3191.8,3191.7,0.2298]
[1763369539691,0.75246418,3191.8,3191.7,0.2298]
[1763369539999,0.5079,3192.2,3192.0,0.1355]
[1763369540197,0.5079,3192.2,3192.1,0.2298]
[1763369540592,0.5079,3192.2,3192.1,3.4376]
[1763369540996,0.50788,3192.4,3192.3,0.2298]
[1763369544400,0.5079,3192.2,3192.1,3.2078]
[1763369545305,0.51130552,3192.6,3192.5,0.1355]
[1763369547299,0.51130552,3192.6,3192.5,0.3653]
[1763369548209,0.51130552,3192.6,3192.5,0.1355]
[1763369551505,1.63081993,3192.6,3192.5,0.1355]
[1763369552202,2.37813087,3192.6,3192.5,0.1355]
[1763369553001,1.25861646,3192.6,3192.5,0.1355]
[1763369554412,1.25861646,3192.6,3192.5,0.3653]
[1763369556112,1.25861646,3192.6,3192.5,0.1355]
[1763369556406,0.5079,3192.2,3192.1,3.2078]
[1763369556712,0.50792,3192.1,3192.0,0.1355]
[1763369557013,1.25523094,3192.1,3192.0,0.1355]
[1763369557602,1.25523094,3192.1,3192.0,0.3653]
[1763369559006,1.25523094,3192.1,3192.0,0.1355]
[1763369560913,1.25523094,3192.1,3192.0,0.3653]
[1763369562708,1.25523094,3192.1,3192.0,0.1355]
[1763369563810,0.50801,3191.5,3191.4,0.00470581]
[1763369564015,1.25279649,3191.5,3191.4,0.00470581]
[1763369567318,1.24319649,3191.5,3191.4,0.00470581]
[1763369570123,1.24319649,3191.5,3191.4,0.23450581]
[1763369571322,1.24319649,3191.5,3191.4,0.00470581]
[1763369573026,1.24319649,3191.5,3191.4,0.25110581]
[1763369576017,1.25279649,3191.5,3191.4,0.25110581]
[1763369576218,0.50801,3191.5,3191.4,0.25110581]
[1763369582130,1.25125823,3191.5,3191.4,0.00470581]
[1763369583925,1.25125823,3191.5,3191.4,0.25110581]
[1763369584330,1.25125823,3191.5,3191.4,0.00470581]
[1763369586535,1.25125823,3191.5,3191.4,0.25110581]
[1763369590637,1.25125823,3191.5,3191.4,0.00470581]
[1763369591337,1.25125823,3191.5,3191.4,0.25110581]
[1763369591634,0.50807,3191.1,3190.7,3.2078]
[1763369592033,1.25131823,3191.1,3190.7,3.2078]
[1763369592834,1.25131823,3191.1,3190.7,3.21250581]
[1763369593230,1.25131823,3191.1,3191.0,0.4052]
[1763369594233,0.74324823,3191.1,3191.0,0.4052]
[1763369594440,0.50807,3191.1,3191.0,0.4052]
[1763369594638,1.25131823,3191.1,3191.0,0.4052]
[1763369595838,1.25131823,3191.1,3191.0,0.1588]
[1763369596539,2.36940263,3191.1,3191.0,0.1588]
[1763369597940,2.36940263,3191.1,3190.7,0.24790581]
[1763369597941,0.50812,3190.8,3190.7,0.24790581]
[1763369598340,1.25136823,3190.8,3190.7,0.24790581]
[1763369599140,1.25136823,3190.8,3190.7,0.00470581]
[1763369600247,1.25136823,3190.8,3190.7,0.25160581]
[1763369600447,1.25136823,3190.8,3190.7,0.00470581]
[1763369601641,1.2572893,3190.8,3190.7,0.00470581]
[1763369604040,1.2572893,3190.8,3190.7,0.25160581]
[1763369604342,1.2572893,3190.8,3190.7,3.45940581]
[1763369606240,1.2572893,3190.8,3190.7,0.25160581]
[1763369607743,1.2572893,3190.8,3190.7,0.00470581]
[1763369609449,0.7491693,3190.8,3190.7,3.45940581]
[1763369609648,0.7491693,3190.8,3190.7,3.21250581]
[1763369609943,0.7491693,3190.8,3190.7,3.45940581]
[1763369610450,1.2572893,3190.8,3190.7,3.45940581]
[1763369610645,1.2572893,3190.8,3190.7,0.25160581]
[1763369612054,1.2572893,3190.8,3190.5,0.1355]
[1763369612056,0.7491693,3190.8,3190.0,0.1355]
[1763369612253,0.50823,3190.1,3190.0,0.1355]
[1763369612440,0.50831,3189.6,3189.5,0.1355]
[1763369612649,1.2574793,3189.6,3189.5,0.1355]
[1763369613047,1.26098262,3189.6,3189.5,0.1385827]
[1763369613241,0.50839,3189.1,3188.5,3.3475]
[1763369613447,0.50839,3189.1,3189.0,0.3866]
[1763369614147,0.00350332,3189.6,3189.5,0.1397]
[1763369614343,1.25908211,3189.6,3189.5,0.39006974]
[1763369614750,1.25908211,3189.6,3189.5,0.14316974]
[1763369616154,0.51181332,3189.6,3189.5,0.14316974]
[1763369616556,3.71961332,3189.6,3189.5,0.14316974]
[1763369618847,3.71961332,3189.6,3189.5,0.00346974]
[1763369619048,4.46475089,3189.6,3189.5,0.00346974]
[1763369619260,3.71961332,3189.6,3189.5,0.00346974]
[1763369619647,0.50836,3189.3,3189.2,0.00470581]
[1763369620459,0.50839,3189.1,3189.0,0.1397]
[1763369620652,0.50839,3189.1,3189.0,0.143756]
[1763369620957,1.2529049,3189.1,3189.0,0.143756]
[1763369621161,0.50839,3189.1,3189.0,0.143756]
[1763369621755,0.50838,3189.2,3189.1,0.2469]
[1763369622349,0.50839,3189.1,3189.0,0.143756]
[1763369622754,0.50839,3189.1,3189.0,0.134156]
[1763369626463,0.50839,3189.1,3189.0,0.143756]
[1763369628064,0.50839,3189.1,3189.0,0.004056]
[1763369631050,0.50839,3189.1,3189.0,0.378056]
[1763369632661,0.50855,3188.1,3187.5,0.1397]
[1763369632866,3.71635,3188.1,3188.0,0.3738]
[1763369633669,3.71635,3188.1,3188.0,0.37626934]
[1763369634560,3.71635,3188.1,3188.0,0.14216934]
[1763369635368,0.50863,3187.6,3187.5,0.3738]
[1763369636067,3.2078,3187.7,3187.6,0.74273]
[1763369636465,3.2078,3187.7,3187.6,0.74665599]
[1763369637173,3.71642,3187.7,3187.6,0.74665599]
[1763369637470,3.71642,3187.7,3187.6,0.23802599]
[1763369638263,0.50862,3187.7,3187.6,0.23802599]
[1763369638770,0.50862,3187.7,3187.6,0.00392599]
[1763369638970,0.50862,3187.7,3187.6,0.23802599]
[1763369639777,0.50862,3187.7,3187.6,0.74665599]
[1763369640669,0.00470581,3187.9,3187.8,0.2341]
[1763369640868,0.51328581,3187.9,3187.8,0.2341]
[1763369641371,0.50862,3187.7,3187.6,0.23802599]